Cogmind - Beta 15 @@@ ROGUE MODE // 2025.05.07 @ 03:50:04 // Winter2019/RPGLIKE Player: DeepestRoots Result: Destroyed by Y-64 Sentinel with KE Penetrator Performance ------------- Evolutions (5) 2500 Regions Visited (15) 3000 Robots Destroyed (192) 960 Value Destroyed (5203) 5203 Prototype IDs (216) 4320 Alien Tech Used (0) 0 Bonus (4583) 4583 TOTAL SCORE: 20566 Bonus ------- High Alert Combat Kills 231 Follower Combat Kills 252 Registered with UFD 300 Met Optimus in HQ 500 Met Data Miner 300 Used Data Conduit 3000 Cogmind --------- Core Integrity 0/600 Matter 217/300 Energy 308/310 System Corruption 0% Temperature Cool (4) Movement Hovering (48) Location -5/Factory Parts ------- > --- POWER (1) -------- Cooled Deuterium Engine > --- PROPULSION (5) --- Cooled Aerolev Unit Gravmag Array Gravmag Array > --- UTILITY (7) ------ Cooling System Improved Signal Interpreter Advanced Terrain Scanner Seismic Detector Medium Armor Plating Advanced Hacking Suite Advanced Hacking Suite > --- WEAPON (3) ------- Plasma Rifle Plasma Rifle Great Axe > --- INVENTORY (2) ---- Improved Particle Charger Rocket Launcher Peak State ------------ > --- POWER ------------ Cooled Deuterium Engine > --- PROPULSION ------- Cooled Aerolev Unit Gravmag Array Gravmag Array > --- UTILITY ---------- Cooling System Improved Signal Interpreter Advanced Terrain Scanner Seismic Detector Improved Hacking Suite Advanced Hacking Suite Improved Trap Extractor > --- WEAPON ----------- Plasma Rifle Plasma Rifle Great Axe > --- INVENTORY -------- Improved Particle Charger Rocket Launcher [Rating: 71] Favorites ----------- Power Cooled Deuterium Engine Engine Cooled Deuterium Engine Propulsion Aluminum Leg Leg Aluminum Leg Wheel Wheel Hover Unit Airjet Utility Seismic Detector Device Seismic Detector Processor Improved Signal Interpreter Hackware Hacking Suite Protection Light Armor Plating Weapon Gauss Rifle Energy Gun Beam Rifle Energy Cannon Advanced Beam Cannon Ballistic Gun Gauss Rifle Launcher Rocket Launcher Slashing Weapon Great Axe Build | -11 -10 -10 -9 -9 -9 -8 -8 -8 -8 -8 -6 -6 -6 -5 -5 ------- Run | Yrd Mat Min Mat Min Exi Min Mat Sto Rec Scr Fac Low Dat Pro Fac Slots Evolved 12 | 3 2 . . 1 . . 2 . . . 4 . . . . Power . | . . . . . . . . . . . . . . . . Propulsion 4 | 1 . . . 1 . . 1 . . . 1 . . . . Utility 6 | 1 1 . . . . . 1 . . . 3 . . . . Weapon 2 | 1 1 . . . . . . . . . . . . . . Parts Attached 66 | 7 6 4 5 8 . . 13 7 . . 12 . . 2 2 Power 4 | 1 . . 1 . . . 1 1 . . . . . . . Engine 4 | 1 . . 1 . . . 1 1 . . . . . . . Core . | . . . . . . . . . . . . . . . . Reactor . | . . . . . . . . . . . . . . . . Propulsion 20 | 2 . 2 . 4 . . 6 1 . . 4 . . . 1 Treads . | . . . . . . . . . . . . . . . . Leg 8 | . . 2 . 4 . . 2 . . . . . . . . Wheel 2 | 2 . . . . . . . . . . . . . . . Hover 10 | . . . . . . . 4 1 . . 4 . . . 1 Flight . | . . . . . . . . . . . . . . . . Utility 22 | 2 2 2 . 3 . . 3 2 . . 5 . . 2 1 Device 10 | 2 2 1 . 2 . . . 1 . . 1 . . 1 . Storage . | . . . . . . . . . . . . . . . . Processor 2 | . . . . . . . . 1 . . 1 . . . . Hackware 7 | . . . . . . . 2 . . . 3 . . 1 1 Protection 3 | . . 1 . 1 . . 1 . . . . . . . . Artifact . | . . . . . . . . . . . . . . . . Weapon 20 | 2 4 . 4 1 . . 3 3 . . 3 . . . . Energy Gun 7 | 1 . . 1 . . . . 3 . . 2 . . . . Energy Cannon 2 | . 2 . . . . . . . . . . . . . . Ballistic Gun 9 | 1 2 . 3 . . . 3 . . . . . . . . Ballistic Cannon . | . . . . . . . . . . . . . . . . Launcher 1 | . . . . 1 . . . . . . . . . . . Special Weapon . | . . . . . . . . . . . . . . . . Impact Weapon . | . . . . . . . . . . . . . . . . Slashing Weapon 1 | . . . . . . . . . . . 1 . . . . Piercing Weapon . | . . . . . . . . . . . . . . . . Special Melee Weapon . | . . . . . . . . . . . . . . . . Unidentified Prototypes 7 | . 1 . . 1 . . 1 3 . . 1 . . . . Parts Lost 1 | . . . . . . . . . . . . . . 1 . Power . | . . . . . . . . . . . . . . . . Propulsion . | . . . . . . . . . . . . . . . . Utility 1 | . . . . . . . . . . . . . . 1 . Weapon . | . . . . . . . . . . . . . . . . Highest Loss Streak 1 | . . . . . . . . . . . . . . 1 . To Critical Strikes . | . . . . . . . . . . . . . . . . Average Backups 1 | . 1 1 1 2 2 2 1 2 2 2 2 2 2 2 2 Power . | . . . . . . . . . . . . . . . . Propulsion . | . . . . . . . . . . . . . . . . Utility . | . . . . 1 1 1 . 1 1 1 1 1 1 1 1 Weapon 1 | . 1 1 1 1 1 1 1 1 1 1 1 1 1 1 1 Tool/Special . | . . . . . . . . . . . . . . . . Unused Backups 5 | . 1 1 2 . . . . . . . . . . . 1 Power . | . . . . . . . . . . . . . . . . Propulsion . | . . . . . . . . . . . . . . . . Utility 2 | . . . 1 . . . . . . . . . . . 1 Weapon 3 | . 1 1 1 . . . . . . . . . . . . Tool/Special . | . . . . . . . . . . . . . . . . Average Slot Usage (%) 98 | . 99 100 99 100 100 100 99 99 100 100 95 87 87 84 85 Engine 9 | . 12 11 11 10 10 10 9 8 8 8 6 6 6 6 6 Leg 11 | . . 5 22 29 30 30 19 . . . . . . . . Wheel 3 | . 24 16 . . . . . . . . . . . . . Hover 10 | . . . . . . . 10 33 33 33 26 18 18 18 18 Device 19 | . 30 23 22 20 20 20 14 13 16 16 15 18 18 18 18 Processor 1 | . . . . . . . . 2 . . 4 6 6 6 6 Hackware 4 | . . . . . . . 8 8 8 8 12 12 12 9 10 Protection 8 | . . 9 10 9 10 10 9 8 8 8 6 6 6 6 6 Energy Gun 12 | . 12 11 11 6 10 10 . 19 25 25 17 12 12 12 12 Ballistic Gun 14 | . 14 22 22 20 20 20 27 5 . . . . . . . Peak Build Rating 71 | 9 12 11 17 25 17 17 39 40 40 40 66 66 66 71 70 Average Rating 28 | 6 10 9 15 16 17 17 30 38 40 40 51 65 66 66 69 On Entrance 32 | . 9 10 11 17 17 17 17 38 40 40 40 66 66 66 64 Naked Turns . | . . . . . . . . . . . . . . . . Heaviest Build 34 | 10 17 16 22 24 23 23 33 31 30 30 34 34 34 34 34 Greatest Support 49 | 20 20 20 20 30 30 30 40 32 32 32 49 49 49 49 49 Greatest Overweight (x) 3 | . . 1 1 1 . . 3 . . . . . . . . Average Overweight (x) . | . . . . . . . . . . . . . . . . Largest Inventory Capacity 2 | 1 1 1 2 2 2 2 2 2 2 2 2 2 2 2 2 Average Capacity 1 | 1 1 1 1 2 2 2 2 2 2 2 2 2 2 2 2 Most Carried 2 | 1 1 1 2 2 2 2 2 2 2 2 2 2 2 2 2 Average Carried 1 | . 1 1 1 2 2 2 1 2 2 2 2 2 2 2 2 Final Capacity 2 | 1 1 1 2 2 2 2 2 2 2 2 2 2 2 2 2 Final Carried 2 | 1 1 1 2 2 2 2 2 2 2 2 2 2 2 2 2 Class Distribution -------------------- 40% | Scavenger-Gunner 31% | Gunner 12% | Hacker-Scout 6% | Mutant 5% | Hacker-Gunner Dominant Class ---------------- Gunner | -10/Materials Gunner | -10/Mines Scavenger-Gunner | -9/Materials Scavenger-Gunner | -9/Mines Scavenger-Gunner | -9/Exiles Scavenger-Gunner | -8/Mines Hacker-Gunner | -8/Materials Gunner | -8/Storage Gunner | -8/Recycling Gunner | -8/Scraptown Hacker-Scout | -6/Factory Hacker-Scout | -6/Lower Caves Hacker-Scout | -6/Data Miner Hacker-Scout | -5/Proximity Caves Hacker-Scout | -5/Factory Resources | -11 -10 -10 -9 -9 -9 -8 -8 -8 -8 -8 -6 -6 -6 -5 -5 ----------- Run | Yrd Mat Min Mat Min Exi Min Mat Sto Rec Scr Fac Low Dat Pro Fac Matter Collected 3057 | 172 442 124 556 274 . 24 755 436 . . 160 10 . 104 . Remotely . | . . . . . . . . . . . . . . . . Salvage Created 6021 | 115 891 189 1767 305 . 30 904 1168 153 . 322 90 . 64 23 Parts 421 | 11 59 15 105 34 . 5 62 85 13 . 17 8 . 6 1 Haulers Intercepted 9 | . 2 . 6 . . . . 1 . . . . . . . Recyclers Shooed 5 | . . 1 2 . . . . . . . 1 . . . 1 Parts Field Recycled . | . . . . . . . . . . . . . . . . Retrieved Matter . | . . . . . . . . . . . . . . . . Parts Self-Destructed 9 | . . . . . . . . . . . . 5 . 4 . Prevented 2 | . . . . . . . . . . . . . . 2 . Kills | -11 -10 -10 -9 -9 -9 -8 -8 -8 -8 -8 -6 -6 -6 -5 -5 ------- Run | Yrd Mat Min Mat Min Exi Min Mat Sto Rec Scr Fac Low Dat Pro Fac Combat Hostiles Destroyed 136 | . 22 4 32 11 . . 21 33 4 . 1 1 . 3 4 Melee 1 | . . . . . . . . . . . . . . 1 . Guns 116 | . 19 4 32 11 . . 21 22 3 . 1 1 . 1 1 Cannons 2 | . 2 . . . . . . . . . . . . . . AOE 15 | . . . . . . . . 11 . . . . . 1 3 Classes Destroyed 15 | 2 7 . 2 . . . . 2 . . . 1 . 1 . Worker 13 | . 1 1 1 1 . 1 1 3 . . 4 . . . . Builder 3 | . 1 . . . . . . 2 . . . . . . . Tunneler 7 | 3 . 2 . 1 . 1 . . . . . . . . . Hauler 9 | . 2 . 6 . . . . 1 . . . . . . . Recycler 8 | 1 . 1 3 1 . . . 1 . . 1 . . . . Minesweeper 2 | . . . . . . . . . . . . 1 . 1 . Operator 4 | . 1 . 2 . . . . . . . 1 . . . . Drone 1 | . . . . . . . . . . . . . . 1 . Watcher 10 | . 2 . 3 . . . 3 2 . . . . . . . Swarmer 35 | . 3 . 9 6 . . 6 6 . . . . . 1 4 Grunt 61 | . 19 4 14 4 . . 7 12 . . . . . 1 . Brawler 5 | . . . 2 1 . . . 2 . . . . . . . Duelist 2 | . . . . . . . . 2 . . . . . . . Protector 1 | . . . . . . . . 1 . . . . . . . Sentry 31 | . . . 7 . . . 8 10 4 . 1 1 . . . Decomposer 2 | . . . . . . . . . . . . 2 . . . Best Kill Streak 17 | 2 3 2 6 6 . 1 5 17 2 . 2 1 . 2 4 Combat Bots Only 12 | . 3 2 6 6 . . 3 12 2 . 1 1 . 1 4 Max Kills in Single Turn 3 | 1 2 1 2 3 . 1 2 3 1 . 1 1 . 1 2 Gunslinging 2 | . 1 . 1 2 . . . . . . . . . . . Exploded 3 | . . . . . . . . 3 . . . . . 1 2 Melee 1 | . . . . . . . . . . . . . . 1 . Uniques/NPCs Destroyed . | . . . . . . . . . . . . . . . . Combat | -11 -10 -10 -9 -9 -9 -8 -8 -8 -8 -8 -6 -6 -6 -5 -5 -------- Run | Yrd Mat Min Mat Min Exi Min Mat Sto Rec Scr Fac Low Dat Pro Fac Hostile Shots Fired 493 | . 83 8 106 44 . . 56 60 14 . 38 9 6 32 37 Missed 179 | . 20 3 28 10 . . 18 26 7 . 21 3 3 22 18 Hits 314 | . 63 5 78 34 . . 38 34 7 . 17 6 3 10 19 Melee 3 | . . . 2 1 . . . . . . . . . . . Projectile 311 | . 63 5 76 33 . . 38 34 7 . 17 6 3 10 19 AOE 8 | . . . . 8 . . . . . . . . . . . Critical Strikes 8 | . 2 . . 1 . . . 4 1 . . . . . . Damage Taken 4727 | . 704 52 979 593 . . 498 602 105 . 238 50 138 416 352 Core 3566 | . 573 31 724 412 . . 352 459 80 . 179 31 119 351 255 Absorbed by Shields 69 | . 62 7 . . . . . . . . . . . . . Redirected to Core 2844 | . 419 31 660 393 . . 330 315 65 . 164 31 71 178 187 Regen/Repaired (Parts) 46 | . . . 46 . . . . . . . . . . . . Core Remaining (%) 77 | 100 . 100 . . . 47 . . . 100 . . . 39 . Volleys Fired 378 | 9 84 14 81 24 . 4 48 86 6 . 7 5 . 3 7 Largest 3 | 2 3 3 3 3 . 3 3 3 3 . 3 2 . 1 2 Hottest 205 | 70 138 90 102 102 . 102 84 177 177 . 205 150 . 75 150 Shots Fired 963 | 18 192 42 243 72 . 12 140 184 18 . 15 10 . 6 11 Gun 934 | 18 178 42 243 72 . 12 139 174 18 . 15 10 . 5 8 Cannon 14 | . 14 . . . . . . . . . . . . . . Launcher 15 | . . . . . . . 1 10 . . . . . 1 3 Special . | . . . . . . . . . . . . . . . . Kinetic 525 | 9 95 28 162 48 . 8 139 36 . . . . . . . Thermal 423 | 9 97 14 81 24 . 4 . 138 18 . 15 10 . 5 8 Explosive 15 | . . . . . . . 1 10 . . . . . 1 3 Electromagnetic . | . . . . . . . . . . . . . . . . Robot Hit Streak 17 | 6 10 10 10 11 . 2 17 16 9 . 5 6 . 1 3 Robot Miss Streak 6 | 1 5 1 6 5 . 1 3 4 1 . 2 1 . . 1 Penetration Max 1 | . . . . . . . 1 1 . . . . . . . Secondary Targets 15 | . 3 . 8 3 . . 1 . . . . . . . . Max Gunslinging Chain 2 | . 1 . 1 2 . . 1 . . . . . . . . Shots Hit Robots 559 | 13 121 31 135 43 . 6 79 85 14 . 14 8 1 4 5 Core Hits 288 | 6 51 15 66 18 . 2 39 70 4 . 5 4 . 3 5 Critical Kills 1 | . . . . . . . 1 . . . . . . . . Critical Parts Destroyed 1 | . . . . . . . 1 . . . . . . . . Critical Strikes 22 | 2 3 1 5 2 . . 2 6 . . 1 . . . . Burn 19 | 2 3 1 4 2 . . . 6 . . 1 . . . . Destroy 3 | . . . 1 . . . 2 . . . . . . . . Melee Attacks 73 | . . . . . . . . . . . 24 7 23 13 6 Impact . | . . . . . . . . . . . . . . . . Slashing 73 | . . . . . . . . . . . 24 7 23 13 6 Piercing . | . . . . . . . . . . . . . . . . Sneak Attacks 7 | . . . . . . . . . . . 5 . 1 1 . Combat Hostiles . | . . . . . . . . . . . . . . . . Follow-up Attacks . | . . . . . . . . . . . . . . . . Damage Inflicted 12371 | 132 1680 428 2254 645 . 84 1910 3372 312 . 594 224 105 230 401 Guns 9544 | 132 1455 428 2242 645 . 84 1910 1907 312 . 155 133 . 23 118 Cannons 195 | . 195 . . . . . . . . . . . . . . Explosions 1786 | . . . . . . . . 1465 . . . . . 38 283 Melee 804 | . . . . . . . . . . . 439 91 105 169 . Ramming 42 | . 30 . 12 . . . . . . . . . . . . Kinetic 5293 | 44 735 275 1533 423 . 69 1910 304 . . . . . . . Thermal 4446 | 88 915 153 709 222 . 15 . 1603 312 . 155 133 . 23 118 Explosive 1786 | . . . . . . . . 1465 . . . . . 38 283 Electromagnetic . | . . . . . . . . . . . . . . . . Impact . | . . . . . . . . . . . . . . . . Slashing 804 | . . . . . . . . . . . 439 91 105 169 . Piercing . | . . . . . . . . . . . . . . . . Highest Corruption 4 | . . . . . . . . . . . 3 3 3 4 . Average Corruption 2 | . . . . . . . . . . . 1 3 3 3 . Corruption Purged . | . . . . . . . . . . . . . . . . Corruption Blocked . | . . . . . . . . . . . . . . . . Effects 23 | . . . . . . . . . . . 2 6 3 12 . Message Errors 4 | . . . . . . . . . . . . 1 2 1 . Matter Fused 5 | . . . . . . . . . . . . 1 . 4 . Heat Flow Errors 2 | . . . . . . . . . . . 1 . . 1 . Energy Discharges 2 | . . . . . . . . . . . . 1 1 . . Data Loss (minor) 5 | . . . . . . . . . . . . 3 . 2 . Data Loss (major) 2 | . . . . . . . . . . . 1 . . 1 . Misfires 3 | . . . . . . . . . . . . . . 3 . Overload Shots . | . . . . . . . . . . . . . . . . Overflow Damage 340 | . . . . . . . . 112 . . 95 25 . 41 67 Projectiles . | . . . . . . . . . . . . . . . . Explosions 179 | . . . . . . . . 112 . . . . . . 67 Melee 161 | . . . . . . . . . . . 95 25 . 41 . Knockbacks . | . . . . . . . . . . . . . . . . Impact . | . . . . . . . . . . . . . . . . Kinetic . | . . . . . . . . . . . . . . . . Secondary . | . . . . . . . . . . . . . . . . Self-Inflicted Damage 82 | . 14 . . . . . . 68 . . . . . . . Shots 2 | . . . . . . . . 2 . . . . . . . Rammed 5 | . 5 . . . . . . . . . . . . . . Targets Rammed 8 | . 5 . 3 . . . . . . . . . . . . Kicked 3 | . . . 3 . . . . . . . . . . . . Crushed . | . . . . . . . . . . . . . . . . Highest Temperature 324 | 60 312 45 107 5 . . 321 324 239 . 226 98 . 140 117 Average Temperature 78 | 25 82 15 17 2 . . 104 105 105 . 94 37 . 41 51 Received Heat Transfer 1299 | . 332 28 285 75 . . 162 234 72 . 30 18 . . 63 Effects 14 | . 4 . . . . . 4 6 . . . . . . . Energy Bleed 2 | . 1 . . . . . 1 . . . . . . . . Interference 11 | . 3 . . . . . 3 5 . . . . . . . Matter Decay 1 | . . . . . . . . 1 . . . . . . . Siege Activations . | . . . . . . . . . . . . . . . . Martial Activations . | . . . . . . . . . . . . . . . . Shielding Activations . | . . . . . . . . . . . . . . . . Robots Disrupted . | . . . . . . . . . . . . . . . . Combat Hostiles . | . . . . . . . . . . . . . . . . Robots Corrupted . | . . . . . . . . . . . . . . . . Combat Hostiles . | . . . . . . . . . . . . . . . . Parts Fried 1 | . . . . . . . . . . . . . . 1 . Impact Corruptions . | . . . . . . . . . . . . . . . . Robots Melted 2 | . 1 . . . . . . . 1 . . . . . . Combat Hostiles 2 | . 1 . . . . . . . 1 . . . . . . Parts Melted 21 | 2 3 1 2 2 . . . 7 3 . 1 . . . . Heat Transferred 11000 | 407 2627 518 2072 703 . 37 . 3068 518 . 450 300 . 50 250 Parts Sabotaged . | . . . . . . . . . . . . . . . . Parts Stolen . | . . . . . . . . . . . . . . . . Parts Stripped . | . . . . . . . . . . . . . . . . Power Chain Reactions . | . . . . . . . . . . . . . . . . Alert | -11 -10 -10 -9 -9 -9 -8 -8 -8 -8 -8 -6 -6 -6 -5 -5 ------- Run | Yrd Mat Min Mat Min Exi Min Mat Sto Rec Scr Fac Low Dat Pro Fac Maximum Alert Level 3 | . 1 . 2 . . . . 3 2 . . . . . . Low Security (%) 65 | 100 69 100 22 100 . 100 100 54 3 . 100 . . . 100 Level 1 28 | . 30 . 76 . . . . 1 94 . . . . . . Level 2 3 | . . . . . . . . 30 2 . . . . . . Level 3 1 | . . . . . . . . 13 . . . . . . . Level 4 . | . . . . . . . . . . . . . . . . Level 5 . | . . . . . . . . . . . . . . . . High Security . | . . . . . . . . . . . . . . . . Max Security . | . . . . . . . . . . . . . . . . Peak Influence 800 | 5 320 151 402 179 . 5 152 800 405 . 88 . . . 133 Initial 205 | . . 111 . 89 . . . . 205 . . . . . 16 Average 150 | 1 167 45 245 53 . . 37 301 333 . 19 . . . 22 Influence Increases 5520 | 20 764 120 1407 275 . 10 718 1320 315 . 282 25 . 95 169 Destroy 0b10 Robot/C 2920 | . 440 80 840 220 . . 420 680 80 . 20 20 . 40 80 Destroy 0b10 Robot/NC 300 | 20 35 20 85 15 . 10 20 50 . . 30 5 . 10 . Destroy Leader 722 | . 98 20 242 40 . . 126 176 . . 10 . . . 10 Allied During Kill 87 | . . . 79 . . . . 8 . . . . . . . Successful Hack 185 | . 38 . 52 . . . 16 5 9 . 41 . . . 24 Select Force Hacks 330 | . 60 . 60 . . . . . 210 . . . . . . Disable Machine 240 | . . . 15 . . . 45 150 15 . 15 . . . . Destroy Structure 181 | . 3 . 4 . . . 16 101 1 . 16 . . . 40 Partial Spotted 90 | . . . 15 . . . 30 30 . . 15 . . . . Lose Combat Pursuer 465 | . 90 . 15 . . . 45 120 . . 135 . . 45 15 Influence Decreases 5520 | 20 478 406 1177 505 . 10 718 793 492 350 198 109 . 69 195 Entered New Map 1030 | . . 175 . 141 . . . . 322 350 . 32 . . 10 Time Decay 3130 | 20 478 231 667 364 . 10 351 453 170 . 198 77 . 59 52 Lost Part 10 | . . . . . . . . . . . . . . 10 . Lost Ally 100 | . . . 60 . . . . 40 . . . . . . . Purge Threat 1250 | . . . 450 . . . 367 300 . . . . . . 133 Squads Dispatched 32 | . 5 . 7 . . . 3 10 . . 5 . . . 2 Investigation 14 | . 4 . 5 . . . 2 1 . . 1 . . . 1 Extermination 2 | . . . . . . . . . . . 2 . . . . Reinforcement 9 | . 1 . 2 . . . 1 2 . . 2 . . . 1 Assault 4 | . . . . . . . . 4 . . . . . . . Garrison 3 | . . . . . . . . 3 . . . . . . . Intercept . | . . . . . . . . . . . . . . . . Searches Triggered . | . . . . . . . . . . . . . . . . Construction Impeded . | . . . . . . . . . . . . . . . . Haulers Reinforced . | . . . . . . . . . . . . . . . . Active Scanning Responses . | . . . . . . . . . . . . . . . . Cargo Convoy Interrupts 1 | . . . . . . . . . . . 1 . . . . Stealth | -11 -10 -10 -9 -9 -9 -8 -8 -8 -8 -8 -6 -6 -6 -5 -5 --------- Run | Yrd Mat Min Mat Min Exi Min Mat Sto Rec Scr Fac Low Dat Pro Fac Distress Signals 11 | . 3 . 2 . . . 3 1 . . 2 . . . . Communications Jammed . | . . . . . . . . . . . . . . . . Distress Signals . | . . . . . . . . . . . . . . . . Times Spotted 236 | . 40 4 54 13 . . 35 49 2 . 15 2 4 7 11 Peak Tracking Total 16 | . 6 2 10 5 . . 5 16 2 . 8 1 4 3 6 Tactical Retreats 19 | . 4 . 1 . . . 2 3 . . 5 . . 3 1 Traps | -11 -10 -10 -9 -9 -9 -8 -8 -8 -8 -8 -6 -6 -6 -5 -5 ------- Run | Yrd Mat Min Mat Min Exi Min Mat Sto Rec Scr Fac Low Dat Pro Fac Traps Triggered 10 | . 2 . 2 . . . 2 2 . . 1 . . . 1 Indirectly . | . . . . . . . . . . . . . . . . Trap Hack Attempts . | . . . . . . . . . . . . . . . . Triggered . | . . . . . . . . . . . . . . . . Disarmed . | . . . . . . . . . . . . . . . . Reprogrammed 4 | . . . . . . . . . . . . . . . 4 Reused . | . . . . . . . . . . . . . . . . Traps Extracted . | . . . . . . . . . . . . . . . . Installed . | . . . . . . . . . . . . . . . . Triggered . | . . . . . . . . . . . . . . . . Machines | -11 -10 -10 -9 -9 -9 -8 -8 -8 -8 -8 -6 -6 -6 -5 -5 ---------- Run | Yrd Mat Min Mat Min Exi Min Mat Sto Rec Scr Fac Low Dat Pro Fac Machines Disabled 16 | . . . 1 . . . 3 10 1 . 1 . . . . Max in Single Turn 2 | . . . 1 . . . 1 2 1 . 1 . . . . Garrison Access 4 | . . . . . . . 1 . . . 3 . . . . Machines Repaired . | . . . . . . . . . . . . . . . . Machines Dismantled . | . . . . . . . . . . . . . . . . Machines Sabotaged . | . . . . . . . . . . . . . . . . Overloaded Fab Kills . | . . . . . . . . . . . . . . . . Hacking | -11 -10 -10 -9 -9 -9 -8 -8 -8 -8 -8 -6 -6 -6 -5 -5 --------- Run | Yrd Mat Min Mat Min Exi Min Mat Sto Rec Scr Fac Low Dat Pro Fac Machines Accessed 87 | . 9 . 15 . 1 . 13 10 13 3 14 . 4 1 4 Terminals 52 | . 7 . 10 . . . 11 9 6 . 5 . . 1 3 Fabricators 5 | . . . . . . . . . . . 4 . . . 1 Repair Stations 2 | . . . 1 . . . 1 . . . . . . . . Recycling Units 13 | . 2 . 2 . . . . . 7 . 2 . . . . Scanalyzers 2 | . . . 2 . . . . . . . . . . . . Garrison Access 5 | . . . . . . . 1 1 . . 3 . . . . Total Hacks 259 | . 28 . 43 . 4 . 41 33 28 9 39 . 21 1 12 Successful 163 | . 12 . 29 . 4 . 21 16 22 9 19 . 21 1 9 Failed 96 | . 16 . 14 . . . 20 17 6 . 20 . . . 3 Catastrophic 10 | . 4 . 2 . . . 2 . . . 2 . . . . Database Lockouts . | . . . . . . . . . . . . . . . . Manual 122 | . 19 . 12 . . . 26 13 25 . 20 . . . 7 Terminals 179 | . 24 . 36 . . . 38 30 21 . 18 . . 1 11 Fabricators 12 | . . . . . . . . . . . 11 . . . 1 Repair Stations 4 | . . . 2 . . . 2 . . . . . . . . Recycling Units 20 | . 4 . 3 . . . . . 7 . 6 . . . . Scanalyzers 2 | . . . 2 . . . . . . . . . . . . Garrison Access 8 | . . . . . . . 1 3 . . 4 . . . . Terminal Hacks 110 | . 7 . 19 . 4 . 17 12 5 9 8 . 21 1 7 Record 19 | . . . . . 4 . . . . 9 . . 5 1 . Part Schematic 10 | . . . . . . . . . . . 2 . 8 . . Robot Schematic 6 | . . . . . . . . . 1 . . . 5 . . Robot Analysis 9 | . 3 . 2 . . . 3 . 1 . . . . . . Prototype ID Bank 10 | . . . 3 . . . 2 . 1 . . . 3 . 1 Open Door 3 | . . . . . . . . 3 . . . . . . . Branch Access Points 5 | . 1 . 1 . . . 1 . . . 1 . . . 1 Emergency Access Points 5 | . . . 2 . . . 1 1 . . 1 . . . . Terminal Index 2 | . . . . . . . . . 1 . 1 . . . . Alert Level 3 | . . . 2 . . . . . 1 . . . . . . Unreport Threat 10 | . . . 3 . . . 4 2 . . . . . . 1 Locate Traps 17 | . 3 . 2 . . . 3 4 . . 3 . . . 2 Reprogram Traps 1 | . . . . . . . . . . . . . . . 1 Patrol Status 2 | . . . . . . . 1 . . . . . . . 1 Hauler Manifests 4 | . . . 2 . . . . 2 . . . . . . . Registered Components 1 | . . . . . . . 1 . . . . . . . . Zone Layout 3 | . . . 2 . . . 1 . . . . . . . . Fabricator Hacks 1 | . . . . . . . . . . . 1 . . . . Network Status 1 | . . . . . . . . . . . 1 . . . . Repair Station Hacks 2 | . . . 2 . . . . . . . . . . . . Scan Component 1 | . . . 1 . . . . . . . . . . . . Repair 1 | . . . 1 . . . . . . . . . . . . Recycling Unit Hacks 2 | . 1 . 1 . . . . . . . . . . . . Retrieve Components 2 | . 1 . 1 . . . . . . . . . . . . Scanalyzer 2 | . . . 2 . . . . . . . . . . . . Insert Component 2 | . . . 2 . . . . . . . . . . . . Garrison Access Hacks 4 | . . . . . . . 1 . . . 3 . . . . Seal Access 4 | . . . . . . . 1 . . . 3 . . . . Unauthorized Hacks 42 | . 4 . 5 . . . 3 4 17 . 7 . . . 2 Terminals 24 | . 2 . 3 . . . 3 4 10 . 1 . . . 1 Track 3 | . . . . . . . 1 1 1 . . . . . . Botnet 14 | . 2 . 2 . . . 2 2 4 . 1 . . . 1 Operators 2 | . . . 1 . . . . 1 . . . . . . . Skim 5 | . . . . . . . . . 5 . . . . . . Fabricators 6 | . . . . . . . . . . . 5 . . . 1 Report 1 | . . . . . . . . . . . 1 . . . . Liberate 3 | . . . . . . . . . . . 2 . . . 1 Haulers 2 | . . . . . . . . . . . 2 . . . . Repair Stations 1 | . . . . . . . . . . . 1 . . . . Recycling Units 11 | . 2 . 2 . . . . . 7 . . . . . . Tunnel 11 | . 2 . 2 . . . . . 7 . . . . . . Fedlink 1 | . . . . . . . . . . . 1 . . . . Scanalyzers . | . . . . . . . . . . . . . . . . Garrison Access . | . . . . . . . . . . . . . . . . Data Cores Recovered 1 | . . . . . . . . . . . 1 . . . . Used 1 | . . . . . . . . . . . 1 . . . . Hacking Detections 55 | . 7 . 10 . . . 11 9 5 . 10 . . . 3 Full Trace Events 7 | . 1 . . . . . 3 1 2 . . . . . . Feedback Events . | . . . . . . . . . . . . . . . . Feedback Blocked . | . . . . . . . . . . . . . . . . Robot Schematics Acquired 6 | . . . . . . . . . 1 . . . 5 . . Robots Built . | . . . . . . . . . . . . . . . . Authchips . | . . . . . . . . . . . . . . . . Time . | . . . . . . . . . . . . . . . . Total Robot Build Rating . | . . . . . . . . . . . . . . . . Part Schematics Acquired 10 | . . . . . . . . . . . 2 . 8 . . Parts Built . | . . . . . . . . . . . . . . . . Authchips . | . . . . . . . . . . . . . . . . Time . | . . . . . . . . . . . . . . . . Total Part Build Rating . | . . . . . . . . . . . . . . . . Parts Repaired 1 | . . . 1 . . . . . . . . . . . . Time 13 | . . . 13 . . . . . . . . . . . . Parts Recycled . | . . . . . . . . . . . . . . . . Recycled Matter . | . . . . . . . . . . . . . . . . Retrieved Matter . | . . . . . . . . . . . . . . . . Retrieved Components 18 | . 9 . 9 . . . . . . . . . . . . Parts Scanalyzed . | . . . . . . . . . . . . . . . . Part Schematics Acquired . | . . . . . . . . . . . . . . . . Parts Damaged . | . . . . . . . . . . . . . . . . Bothacking | -11 -10 -10 -9 -9 -9 -8 -8 -8 -8 -8 -6 -6 -6 -5 -5 ------------ Run | Yrd Mat Min Mat Min Exi Min Mat Sto Rec Scr Fac Low Dat Pro Fac Used RIF Installer . | . . . . . . . . . . . . . . . . Robots Hacked . | . . . . . . . . . . . . . . . . Non-combat . | . . . . . . . . . . . . . . . . Combat . | . . . . . . . . . . . . . . . . Robot Hacks Applied . | . . . . . . . . . . . . . . . . Relay Couplers Released . | . . . . . . . . . . . . . . . . Fabnet Peak Effective % . | . . . . . . . . . . . . . . . . Robots Rewired . | . . . . . . . . . . . . . . . . Allies Hacked . | . . . . . . . . . . . . . . . . Hacks Repelled . | . . . . . . . . . . . . . . . . Allies | -11 -10 -10 -9 -9 -9 -8 -8 -8 -8 -8 -6 -6 -6 -5 -5 -------- Run | Yrd Mat Min Mat Min Exi Min Mat Sto Rec Scr Fac Low Dat Pro Fac Total Allies 5 | . . 3 . . . . . 2 . . . . . . . Largest Group 3 | . . 3 3 . . . . 2 . . . . . . . Highest-Rated Group 62 | . . 40 40 . . . . 62 . . . . . . . Highest-Rated Ally 31 | . . 16 16 . . . . 31 . . . . . . . Total Orders . | . . . . . . . . . . . . . . . . Ally Attacks 58 | . . . 45 . . . . 13 . . . . . . . Total Damage 766 | . . . 536 . . . . 230 . . . . . . . Kills 14 | . . . 12 . . . . 2 . . . . . . . Allies Corrupted . | . . . . . . . . . . . . . . . . Allies Melted . | . . . . . . . . . . . . . . . . Intel | -11 -10 -10 -9 -9 -9 -8 -8 -8 -8 -8 -6 -6 -6 -5 -5 ------- Run | Yrd Mat Min Mat Min Exi Min Mat Sto Rec Scr Fac Low Dat Pro Fac Active Infowar (turns) 10807 | 91 1315 644 3038 1009 218 499 1316 629 . . 852 288 152 590 166 Sensors 1 | . . . . 1 . . . . . . . . . . . Terrain 2163 | 69 672 . . . . . . . . . 226 288 152 590 166 Seismic 10807 | 91 1315 644 3038 1009 218 499 1316 629 . . 852 288 152 590 166 Robot Analysis Total 160 | . 3 . 2 . . . 3 . 1 . . . 151 . . Derelict Logs Recovered 6 | . . 1 . 3 . . . . . . . 1 . 1 . Drone Launches . | . . . . . . . . . . . . . . . . Drone Recoveries . | . . . . . . . . . . . . . . . . Exploration | -11 -10 -10 -9 -9 -9 -8 -8 -8 -8 -8 -6 -6 -6 -5 -5 ------------- Run | Yrd Mat Min Mat Min Exi Min Mat Sto Rec Scr Fac Low Dat Pro Fac Turns Passed 12747 | 182 1327 644 3038 1009 218 499 1397 1212 351 817 857 288 152 590 166 Spaces Moved 12383 | 77 1155 562 1658 735 182 405 1112 1369 684 1715 1474 422 126 459 248 Core 2 | 2 . . . . . . . . . . . . . . . Treads . | . . . . . . . . . . . . . . . . Legs 3691 | . . 111 1658 735 182 405 600 . . . . . . . . Wheels 1681 | 75 1155 451 . . . . . . . . . . . . . Hover 7009 | . . . . . . . 512 1369 684 1715 1474 422 126 459 248 Flight . | . . . . . . . . . . . . . . . . Fastest Speed 45 | 50 80 80 120 120 120 120 48 45 45 45 45 48 48 48 48 Average Speed 77 | 79 80 88 158 120 120 120 87 45 45 45 45 48 48 48 48 Slowest Speed 330 | 80 80 120 190 190 120 120 330 48 45 45 48 48 48 48 48 Overloaded Moves . | . . . . . . . . . . . . . . . . Propulsion Burnouts . | . . . . . . . . . . . . . . . . Robots Hopped . | . . . . . . . . . . . . . . . . Potential Cave-ins 2 | . . . . . . . . . . . . . . 2 . Cave-ins Triggered 1 | . . . . . . . . . . . . . . 1 . Exploration Rate (%) 74 | 4 100 101 99 98 58 93 88 95 99 92 49 47 81 71 13 Regions Visited 15 Branch Regions 10 Pre-discovered Areas 28 | . 2 . 2 . 1 . . . 7 . . . 16 . . Known Exits Taken 8 | . 1 1 1 . . . 1 . . . 1 1 1 1 . Unknown Exits Taken 7 | 1 . . . 1 1 1 . 1 1 1 . . . . . Scrap Searched 13 | . . 2 . 1 . 1 . . . 6 . . . 3 . Spaces Dug 60 | . . . . . . . 11 16 . . 17 2 1 8 5 Terrain Destroyed 186 | . . . . . . . 14 115 1 . 17 2 1 12 24 Melee 32 | . . . . . . . . . . . 16 2 1 8 5 Projectile 24 | . . . . . . . 3 19 1 . 1 . . . . AOE 130 | . . . . . . . 11 96 . . . . . 4 19 Terrain Rammed . | . . . . . . . . . . . . . . . . Walls Destroyed . | . . . . . . . . . . . . . . . . Machines Disabled . | . . . . . . . . . . . . . . . . Actions | -11 -10 -10 -9 -9 -9 -8 -8 -8 -8 -8 -6 -6 -6 -5 -5 --------- Run | Yrd Mat Min Mat Min Exi Min Mat Sto Rec Scr Fac Low Dat Pro Fac Total 14549 | 178 1385 679 1882 801 181 409 1430 1806 713 1759 1596 483 176 799 272 Wait 1383 | 85 99 85 83 14 . 1 207 292 18 45 68 40 28 314 4 Move 12368 | 76 1154 561 1657 734 181 404 1111 1368 683 1714 1473 421 125 458 248 Hop . | . . . . . . . . . . . . . . . . Pick Up 8 | 1 1 1 4 . . . . . . . 1 . . . . Fast Attach 34 | 7 4 1 1 4 . . 5 2 . . 7 . . . 3 Attach 1 | . . . . . . . 1 . . . . . . . . Detach 3 | . . . . . . . 1 2 . . . . . . . Swap 62 | . 3 3 6 9 . . 14 9 . . 9 2 . 5 2 Drop 38 | . 5 3 7 8 . . 5 1 . . 7 . . . 2 Fire 378 | 9 84 14 81 24 . 4 48 86 6 . 7 5 . 3 7 Melee 73 | . . . . . . . . . . . 24 7 23 13 6 Ram 5 | . 5 . . . . . . . . . . . . . . Kick 3 | . . . 3 . . . . . . . . . . . . Crush . | . . . . . . . . . . . . . . . . Escape Stasis 13 | . . . . . . . . 13 . . . . . . . Rewire 1 | . . . . . . . . 1 . . . . . . . Trap . | . . . . . . . . . . . . . . . . Miscellaneous 179 | . 30 11 40 8 . . 38 32 6 . . 8 . 6 . Route ------- -11/Scrapyard -10/Materials (discovered 6 exits: *Mat x3 / *Min x2 / [*Sub]) -10/Mines (discovered 3 exits: *Mat x2 / [*Sub]) -9/Materials (discovered 4 exits: *Mat x3 / *Min) -9/Mines (discovered 3 exits: *Mat x2 / *Exi) -9/Exiles (discovered 2 exits: [*Min x2]) -8/Mines (discovered 2 exits: *Mat x2) -8/Materials (discovered 5 exits: [*Fac x3] / *Sto x2) -8/Storage (discovered 2 exits: [*Fac] / *Rec) -8/Recycling (discovered 2 exits: *Fac / *Scr) -8/Scraptown (discovered 2 exits: *Fac x2) -6/Factory (discovered 6 exits: *Fac x2 / *Low x2 / Ext x2) -6/Lower Caves -6/Data Miner -5/Proximity Caves -5/Factory (discovered 4 exits: *Fac x2 / Upp x2) History --------- Turn | Location | Event 1 | -11/Scrapyard | Upgraded with Propulsion slot (x1) 1 | -11/Scrapyard | Upgraded with Utility slot (x1) 1 | -11/Scrapyard | Upgraded with Weapon slot (x1) 9 | -11/Scrapyard | Discovered new exit (range 15) 183 | -11/Scrapyard | Entered Materials 304 | -10/Materials | Build established: Mutant 361 | -10/Materials | Discovered new exit (range 18) 581 | -10/Materials | Core integrity fell below 50% 731 | -10/Materials | Reached level 2 741 | -10/Materials | Upgraded with Utility slot (x1) 741 | -10/Materials | Upgraded with Weapon slot (x1) 758 | -10/Materials | Discovered new exit (range 15) 836 | -10/Materials | Discovered new exit (range 12) 844 | -10/Materials | Discovered new exit (range 15) 969 | -10/Materials | Identified exit to Mines 1134 | -10/Materials | Discovered new exit (range 17) 1148 | -10/Materials | Build established: Gunner 1349 | -10/Materials | Reached level 3 1361 | -10/Materials | Discovered new exit (range 6) 1510 | -10/Materials | Entered Mines 1586 | -10/Mines | Identified exit to Materials 1600 | -10/Mines | Received a Rocket Launcher from a helpful Derelict 1716 | -10/Mines | Discovered new exit (range 6) 1923 | -10/Mines | Discovered exit to Materials (range 9) 1944 | -10/Mines | Assisted by bots powering up and referring to "LRC-V3" 2154 | -10/Mines | Entered Materials 2154 | -9/Materials | Accompanied by 3 allies 2156 | -9/Materials | Reached level 4 2306 | -9/Materials | Build established: Scavenger-Gunner 2320 | -9/Materials | Reached level 5 2424 | -9/Materials | Discovered new exit (range 18) 2556 | -9/Materials | Discovered new exit (range 17) 2562 | -9/Materials | Identified exit to Mines 2615 | -9/Materials | Reached level 6 2735 | -9/Materials | Discovered new exit (range 18) 2909 | -9/Materials | Reached level 7 3068 | -9/Materials | Discovered new exit (range 10) 3678 | -9/Materials | Reached level 8 4333 | -9/Materials | Repaired Lgt. Armor Plating 5192 | -9/Materials | Entered Mines 5213 | -9/Mines | Upgraded with Propulsion slot (x1) 5325 | -9/Mines | Learned 2 Materials zone layouts 5431 | -9/Mines | Assembled infested the area 5458 | -9/Mines | Core integrity fell below 50% 5518 | -9/Mines | Met 8R-AWN 5599 | -9/Mines | Discovered new exit (range 5) 5656 | -9/Mines | Found a damaged Exp. Sensor Array with a note attached 5659 | -9/Mines | Found Prototype Device 5659 | -9/Mines | Identified Exp. Sensor Array 5778 | -9/Mines | Build established: Gunner 5788 | -9/Mines | Reached level 9 5967 | -9/Mines | Discovered new exit (range 6) 5989 | -9/Mines | Learned Materials emergency access door positions 5993 | -9/Mines | Learned Materials terminal intel 5993 | -9/Mines | Discovered new exit (range 5) 6083 | -9/Mines | Build established: Scavenger-Gunner 6201 | -9/Mines | Entered Exiles 6219 | -9/Exiles | Discovered new exit (range 14) 6242 | -9/Exiles | Welcomed by 8R-AWN 6263 | -9/Exiles | Met EX-HEX 6294 | -9/Exiles | Met EX-BIN 6362 | -9/Exiles | Met EX-DEC 6369 | -9/Exiles | Learned location of Zion (-7) 6402 | -9/Exiles | Discovered new exit (range 17) 6419 | -9/Exiles | Entered Mines 6609 | -8/Mines | Discovered new exit (range 5) 6777 | -8/Mines | Discovered new exit (range 4) 6918 | -8/Mines | Entered Materials 6919 | -8/Materials | Core integrity fell below 50% 6920 | -8/Materials | Reached level 10 6921 | -8/Materials | Loaded intel: 12 terminal locations 7303 | -8/Materials | Reached level 11 7335 | -8/Materials | Discovered new exit (range 3) 7469 | -8/Materials | Discovered new exit (range 15) 7628 | -8/Materials | Upgraded with Utility slot (x1) 7812 | -8/Materials | Identified exit to Storage 7851 | -8/Materials | Upgraded with Propulsion slot (x1) 7893 | -8/Materials | Discovered new exit (range 9) 7921 | -8/Materials | Build established: Hacker-Gunner 8040 | -8/Materials | Discovered new exit (range 10) 8209 | -8/Materials | Reached level 12 8315 | -8/Materials | Entered Storage 8399 | -8/Storage | Used back door to open Recycling access 8399 | -8/Storage | Discovered new exit (range 5) 8561 | -8/Storage | Garrison activated, responded to threat 8634 | -8/Storage | Build established: Gunner 8927 | -8/Storage | Met a pair of Derelict thieves 8937 | -8/Storage | Discovered new exit (range 9) 8971 | -8/Storage | Reached level 13 9016 | -8/Storage | Destroyed 12 combat bots 9515 | -8/Storage | First assault squad dispatched 9527 | -8/Storage | Entered Recycling 9572 | -8/Recycling | Reached level 14 9584 | -8/Recycling | Discovered new exit (range 10) 9868 | -8/Recycling | Scanned before Scraplab entrance 9874 | -8/Recycling | Entered Scraplab 9878 | -8/Recycling | Discovered new exit (range 2) 9878 | -8/Recycling | Entered Scraptown 9936 | -8/Scraptown | Visited UFD Registry 9942 | -8/Scraptown | Visited SPCMW 9948 | -8/Scraptown | Visited The Evicted 9960 | -8/Scraptown | Visited Symbiants 9982 | -8/Scraptown | Discovered new exit (range 11) 10005 | -8/Scraptown | Heard Great Nut preacher, LISTEN AND RECITE! 10133 | -8/Scraptown | Visited Cave Peace 10138 | -8/Scraptown | Visited CPS Storage 10160 | -8/Scraptown | Visited Cyclists 10181 | -8/Scraptown | Registered with UFD as "Cargomachine" 10199 | -8/Scraptown | Entered Cyclist Reading Room 10214 | -8/Scraptown | Visited Spacefarers 10264 | -8/Scraptown | Visited Junk Cannon Lab 10279 | -8/Scraptown | Visited Abandonware Association 10282 | -8/Scraptown | Learned abandonware demo "OVRCLOCK.EXE" 10285 | -8/Scraptown | Learned abandonware demo "HACKBUD.EXE" 10285 | -8/Scraptown | Learned abandonware demo "TRNCOAT.EXE" 10297 | -8/Scraptown | Visited A0-MCA Data Center 10299 | -8/Scraptown | Given an A+ rating by A0-MCA 10307 | -8/Scraptown | Visited Modified Component R&D 10331 | -8/Scraptown | Visited Science Testing Area 10338 | -8/Scraptown | Visited Research Penetration Think Tank 10347 | -8/Scraptown | Visited Curators Association 10428 | -8/Scraptown | Visited Junk Repository 10440 | -8/Scraptown | Visited Botcube Research 10450 | -8/Scraptown | Visited DA-N13 Charitable Foundation 10451 | -8/Scraptown | Found DCF Scrap (28 items) 10499 | -8/Scraptown | Discovered new exit (range 5) 10614 | -8/Scraptown | Met Optimus 10614 | -8/Scraptown | Accepted into 0bPrime 10695 | -8/Scraptown | Entered Factory 10697 | -6/Factory | Reached level 15 10801 | -6/Factory | Upgraded with Utility slot (x1) 10902 | -6/Factory | Identified exit to Lower Caves 10902 | -6/Factory | Identified exit to Extension 10914 | -6/Factory | Upgraded with Utility slot (x1) 11050 | -6/Factory | Loaded intel: 8 recycling unit locations 11179 | -6/Factory | Build established: Hacker-Scout 11209 | -6/Factory | Spotted B-75 Beast 11296 | -6/Factory | Upgraded with Propulsion slot (x1) 11326 | -6/Factory | Upgraded with Utility slot (x1) 11364 | -6/Factory | Discovered new exit (range 9) 11371 | -6/Factory | Identified exit to Factory 11475 | -6/Factory | Cargo convoy interrupted 11533 | -6/Factory | Discovered exit to Factory (range 7) 11552 | -6/Factory | Entered Lower Caves 11554 | -6/Lower Caves | Learned Factory terminal intel 11574 | -6/Lower Caves | Attracted the attention of an 0b10 checkpoint 11591 | -6/Lower Caves | A Derelict revealed a hidden shortcut to meet someone special 11593 | -6/Lower Caves | Identified exit to Data Miner 11610 | -6/Lower Caves | Encountered a Warlord checkpoint 11680 | -6/Lower Caves | Entered a destroyed Warlord outpost 11840 | -6/Lower Caves | Entered Data Miner 11840 | -6/Data Miner | Discovered new exit (range 6) 11842 | -6/Data Miner | Reached level 16 11849 | -6/Data Miner | Met Data Miner 11860 | -6/Data Miner | Learned location of Section 7 (-3) 11860 | -6/Data Miner | Acquired the access code to Warlord's prototype stash 11869 | -6/Data Miner | Received God Mode back door access code from Data Miner 11878 | -6/Data Miner | Reached level 17 11878 | -6/Data Miner | Interfaced with the Data Conduit 11991 | -6/Data Miner | Identified exit to Proximity Caves 11992 | -6/Data Miner | Entered Proximity Caves 11994 | -5/Proximity Caves | Reached level 18 12188 | -5/Proximity Caves | Spotted B-75 Beast 12300 | -5/Proximity Caves | Crushed by falling debris 12492 | -5/Proximity Caves | Core integrity fell below 50% 12497 | -5/Proximity Caves | Learned location of 1 exit from Factory 12502 | -5/Proximity Caves | Attracted the attention of an 0b10 checkpoint 12572 | -5/Proximity Caves | Discovered exit to Factory (range 8) 12582 | -5/Proximity Caves | Entered Factory 12583 | -5/Factory | Identified exit to Factory 12583 | -5/Factory | Core integrity fell below 50% 12584 | -5/Factory | Loaded intel: 252 machine locations 12584 | -5/Factory | Reached level 19 12585 | -5/Factory | Loaded intel: 26 terminal locations 12595 | -5/Factory | Build established: Scout 12659 | -5/Factory | Identified exit to Upper Caves 12686 | -5/Factory | Discovered exit to Factory (range 6) 12707 | -5/Factory | Core integrity fell below 20% 12748 | -5/Factory | Destroyed by Y-64 Sentinel with KE Penetrator Last Messages --------------- Shock Maul Plasma Sword Imp. Matter Compressor >>Traps(Locate) Found 4 traps in 1 array: 4x Tesla Bomb Trap Map updated. >>Traps(Reprogram) Reprogrammed 4 Tesla Bomb Traps. >>Enumerate(Patrols) Retrieving latest reported positions... Found 11 active patrol squads. Downloaded coordinate data. 12686_ EXIT=FOUND: FACTORY 12686_ Slug penetrates Wall. 12686_ Scanalyzer disabled. 12689_ Slug penetrates Wall. 12706_ Penetrated by Slug. 12731_ Slug penetrates Wall. 12748_ Penetrated by Slug. Map ----- +----------------------------------------------------+ | ????""""????""?????????????????"""?"""?"""???????? | | ????""""????""?????????????????"""?"""?"""???????? | | ????""""???????????????????????"""?"""?"""???????? | | ?????? ??????????????????????????????????????????? | | ?? ?? ??????????????????????????????????????????? | | ?????????????????????????????????????????????????? | | ??? #?????#k?? ??? #?????????????????????????????? | | ? ????#???? """ ????#? ????? ???????????????????? | | ??? ?#?#????""" ? #??#?#? ??????????????????????? | | ?? ?###?#?# """? ""??#?? ????????????????????????? | | ? ?? ?? ?+ ? ?""??#??? ? ???????#?????????????? | | ??#?#??#?## """ ?T"???? ?"""?"""?? ??????????????? | | ?? ?? ###?"""??""###???"G ?""" ????????????????? | | ? ?? ?###?""" ""??##? """?"""? u?#????????????? | | ? ? ??# ? ???#?T???? """? ??????"""""""""? | | ? ? ? ?#??####??#????? ????? ? u????????????????? | | ??###???##?###??###?##??? ??? ?????????"""""""""? | | ##??#?#??##?##?###?####?? g ? ???????????????????? | | ##???#?################+###? ????????????????????? | | ##?##?### #g???????#?????????????? | | ?#?###### ! """ """ #g? ? ?????????????????? | | ?########! """ """ #? ??????? ????????????? | | ?## + """ """ " " +?? ???????? ???????? | | #?# #####!]! "" "" "Y" #?? ???????????????????? | | ??# #####!! "" "" """ # ?????? ?? ??????????? | | #?# ##?##]Y ! @# ? ? ???? ???????????? | | ??# ##??# #################? ? ??????????????????? | | ###+####"##??#???##?#?#??#?#?#+????????#?????????? | | u #?###?##?#######? ? ??? ????????????????? | | #??#?#?###??#???# ???? ????????????????? | | ###?##?####??#??# ???????? ???? ?????????? | | g #?###########?#??? ?? ? ??? ? ?????????? | | g ##?###?###?#?#??? ?????? ?????????????? | | #?###?######?#??#?? ????????????????????? | | #######?##?#?#?#??? ?????????#???????????? | | #?###???###??##?? ??????? ?????k?????????? | | #?###?######????? ???? ??? ?????????????? | | ##################?#???#?????????????#?????k?????? | | ######?########??##???#?? ?????? ???????????????? | | #######?#######??##????#??? ? ??????#???????????? | | #?#??#######??###?#???#????#????????????????????? | | #?#??####?###?#?#?##? ?????#???????????????????? | | ######??##?#######??? ??????#???????????????????? | | #######??####?####?#? """???#??????????????????? | | ##?###?######?#?#???? ?"""??????????????????????? | | ###?####??######???????"""???????>??????????????? | | ##?##?#########?##??????????????????????????????? | | ##############?#Y#???????????????????????????????? | | # ]]! +????s?????????????????????????? | | # ]/! """ """????????????????????????????????? | +----------------------------------------------------+ Best States ------------- Heat Dissipation 47 Energy Generation 18 Energy Capacity 310 Matter Stores 300 Matter Capacity 300 Sight Range 18 Robot Scan Range 24 Terrain Scan Range 20 Terrain Scan Density 410 Armor Coverage 225 Evasion (%) 56 Targeting Accuracy 5 Particle Charging 15 Offensive Hacking 28 Item Schematics ----------------- Cmb. Gravmag System | -6/Factory | Hacked Adv. Cooling System | -6/Factory | Hacked Combat Drone Bay | -6/Data Miner | Free Lgt. Regenerative Plating | -6/Data Miner | Free Cld. Nuclear Pulse Thruster | -6/Data Miner | Free Prc. Matter Filter | -6/Data Miner | Free Neutron Cannon | -6/Data Miner | Free Adv. VSS Leg | -6/Data Miner | Free Imp. Armor Integrity Analyzer | -6/Data Miner | Free Phase Gun | -6/Data Miner | Free Robot Schematics ------------------ M-28 Smith | -8/Recycling | Hacked E-15 Imp | -6/Data Miner | Free B-60 Warrior | -6/Data Miner | Free R-10 Processor | -6/Data Miner | Free M-22 Extractor | -6/Data Miner | Free A-15 Conveyor | -6/Data Miner | Free Fabricated ------------ Nothing Repaired ---------- Lgt. Armor Plating | 48% | -9/Materials Alien Tech Used ----------------- None Achievements -------------- None Challenges ------------ None RPGLIKE | -11 -10 -10 -9 -9 -9 -8 -8 -8 -8 -8 -6 -6 -6 -5 -5 --------- Run | Yrd Mat Min Mat Min Exi Min Mat Sto Rec Scr Fac Low Dat Pro Fac Levels Raised 18 | . 2 . 5 1 . . 3 1 1 . 1 . 2 1 1 XP Earned 30891 | 3000 3080 1000 7071 1138 97 500 3724 2450 731 210 1870 600 2150 1200 2070 XP Spent 16440 | 2150 1600 . 500 800 . . 2200 . . . 8750 440 . . . Upgrades 32 | 6 2 . 1 1 . . 2 . . . 16 4 . . . Propulsion Slot 4 | 1 . . . 1 . . 1 . . . 1 . . . . Utility Slot 6 | 1 1 . . . . . 1 . . . 3 . . . . Weapon Slot 2 | 1 1 . . . . . . . . . . . . . . Inventory Capacity 2 | 1 . . 1 . . . . . . . . . . . . Sight Range 2 | 2 . . . . . . . . . . . . . . . Sensor Range 12 | . . . . . . . . . . . 12 . . . . Terrain Scan Density 4 | . . . . . . . . . . . . 4 . . . Protomatter Created 1832 | . 329 126 313 138 . . 279 439 102 . . 64 . 42 . Integrity Restored 3653 | . 650 182 765 177 . . 825 631 105 . . 192 . 126 . Core 2949 | . 547 57 643 177 . . 668 459 80 . . 192 . 126 . Parts 704 | . 103 125 122 . . . 157 172 25 . . . . . . Protomatter Decayed 651 | . 107 60 172 89 . . . 175 48 . . . . . . Game ------ Seed DispersionAuthchipTether Manual? 0 Play Time 02:54:37 Cumulative 985.0 hours Start 2025.05.07 @ 00:19:35 End 2025.05.07 @ 03:50:04 Sessions 3 Manual Loads 0 Difficulty Rogue Special Mode Winter2019/RPGLIKE Game No. 79 Rogue 19 Adventurer 46 Explorer 14 Win Type - Total 49 Types 26/4/10/1/1/2/0/3/2/0 Lore% 86 Gallery% 86 Achievement% 80 Wizard Run 0 Options --------- Layout 0 ASCII 0 Keyboard 1 Movement Numpad Keybinds 0 Fullscreen 2 Font 18/SmallcapsGlow Map View 76x50 Zoom Use 0% Tactical HUD 1 Map Filters NONE Filters NONE Steam 0 RUN: 02981fec-df00-4a9c-be95-20ef45863499